[Event "Turkish Youth Championship 2024"]
[Site "Samsun"]
[Date "2024.05.24"]
[Round "9"]
[White "Selvi, Kaan"]
[Black "Turgut, Hakan"]
[Result "0-1"]
[ECO "B86"]
[WhiteElo "1881"]
[BlackElo "1954"]
[Annotator "RC"]
[PlyCount "109"]
[EventDate "2024.05.18"]
[EventType "swiss"]
[EventCountry "TUR"]
[SourceTitle "playchess.com"]
[Source "ChessBase"]
[SourceQuality "1"]
[TimeControl "5400+30"]

1. e4 {[%emt 0:01:00]} c5 {[%emt 0:03:00]} 2. Nf3 {[%emt 0:00:00]} a6 {[%emt 0:00:30]} 3. Nc3 {[%emt 0:01:00]} d6 {[%emt 0:01:30]} 4. d4 {[%emt 0:02:30]} cxd4 {[%emt 0:00:30]} 5. Nxd4 {[%emt 0:00:30]} Nf6 {[%emt 0:00:30]} 6. Bc4 {[%emt 0:02:30]} e6 {[%emt 0:00:30]} 7. a3 {[%emt 0:01:30]} Qc7 {[%emt 0:04:30]} 8. Ba2 {[%emt 0:00:30]} Nbd7 {[%emt 0:05:30]} 9. O-O {[%emt 0:04:30]} Nb6 {[%emt 0:04:30]} 10. Qe2 {[%emt 0:11:30]} Be7 {[%emt 0:01:30]} 11. f4 {[%emt 0:07:30]} O-O {[%emt 0:02:30]} 12. f5 {[%emt 0:10:30]} d5 {[%emt 0:09:30]} 13. fxe6 {[%emt 0:04:30]} fxe6 {[%emt 0:01:30]} 14. Bf4 {[%emt 0:03:30]} Bd6 {[%emt 0:11:30]} 15. e5 {[%emt 0:07:30]} Bc5 {[%emt 0:00:30]} 16. exf6 {[%emt 0:12:30]} Bxd4+ {[%emt 0:01:30]} 17. Kh1 {[%emt 0:01:30]} Qc6 {[%emt 0:16:30]} 18. fxg7 {[%emt 0:02:30]} Rf5 {[%emt 0:00:30]} 19. g4 {[%emt 0:04:30]} Rxf4 {[%emt 0:03:30]} 20. Rxf4 {[%emt 0:00:36]} Bxg7 {[%emt 0:00:30]} 21. Qf3 {[%emt 0:00:37]} Qe8 {[%emt 0:05:30]} 22. Re1 {[%emt 0:01:02]} Qd8 {[%emt 0:03:30]} 23. Rf7 {[%emt 0:11:28]} Bd7 {[%emt 0:01:30]} 24. Rf1 {[%emt 0:00:31]} Bc6 {[%emt 0:12:17]} 25. Rxg7+ {[%emt 0:02:33]} Kxg7 {[%emt 0:00:30]} 26. Qf7+ {[%emt 0:00:30]} Kh8 {[%emt 0:00:30]} 27. Qxe6 {[%emt 0:00:30]} Qg5 {[%emt 0:00:30]} 28. Rf5 {[%emt 0:00:30]} Qg7 {[%emt 0:00:16]} 29. Rf7 {[%emt 0:01:46]} Qg5 {[%emt 0:02:15]} 30. Qe7 {[%emt 0:01:40]} Qxe7 {[%emt 0:05:25]} 31. Rxe7 {[%emt 0:00:03]} Rf8 {[%emt 0:01:42]} 32. Kg1 {[%emt 0:00:23]} Rg8 {[%emt 0:00:17]} 33. h3 {[%emt 0:00:24]} Rg5 {[%emt 0:00:20]} 34. Rf7 {[%emt 0:01:11]} Kg8 {[%emt 0:01:12]} 35. Rf4 {[%emt 0:00:19]} Kg7 {[%emt 0:00:32]} 36. h4 {[%emt 0:00:14]} Re5 {[%emt 0:00:22]} 37. Kf2 {[%emt 0:00:09]} Nd7 {[%emt 0:00:31]} 38. b4 {[%emt 0:00:22]} h6 {[%emt 0:00:32]} 39. Ne2 {[%emt 0:00:35]} Nf6 {[%emt 0:00:48]} 40. Ng3 {[%emt 0:00:03]} Bb5 {[%emt 0:00:04]} 41. Kf3 {[%emt 0:01:54]} Kg6 {[%emt 0:00:07]} 42. Rf5 {[%emt 0:00:38]} Re6 {[%emt 0:01:20]} 43. Bb3 {[%emt 0:01:28]} Bd7 {[%emt 0:00:30]} 44. Nh5 {[%emt 0:00:40]} Nxg4 {[%emt 0:00:44]} 45. Kxg4 {[%emt 0:00:39]} Re5 {[%emt 0:00:20]} 46. Ng3 {[%emt 0:01:18]} Bxf5+ {[%emt 0:00:21]} 47. Nxf5 {[%emt 0:00:36]} h5+ {[%emt 0:00:15]} 48. Kf4 {[%emt 0:01:42]} Rxf5+ {[%emt 0:00:30]} 49. Kg3 {[%emt 0:00:00]} Kf6 {[%emt 0:00:00]} 50. c3 {[%emt 0:00:05]} Ke5 {[%emt 0:00:22]} 51. Bc2 {[%emt 0:00:04]} Rf6 {[%emt 0:00:00]} 52. Bd1 {[%emt 0:00:33]} Rf5 {[%emt 0:00:40]} 53. Bf3 {[%emt 0:00:23]} b5 {[%emt 0:00:11]} 54. Bd1 {[%emt 0:00:22]} d4 {[%emt 0:00:00]} 55. Bf3 {[%emt 0:00:55]} 0-1

[Event "Turkish Youth Championship 2024"]
[Site "Samsun"]
[Date "2024.05.24"]
[Round "9"]
[White "Gokturk, Murat Kutay"]
[Black "Cicek, Bilal Emre"]
[Result "1-0"]
[ECO "B45"]
[WhiteElo "1862"]
[BlackElo "1873"]
[Annotator "NA RC"]
[PlyCount "81"]
[EventDate "2024.05.18"]
[EventType "swiss"]
[EventCountry "TUR"]
[SourceTitle "playchess.com"]
[Source "ChessBase"]
[SourceQuality "1"]
[TimeControl "5400+30"]

1. e4 {[%emt 0:01:00]} c5 {[%emt 0:01:00]} 2. Nf3 {[%emt 0:00:00]} e6 {[%emt 0:00:30]} 3. d4 {[%emt 0:00:00]} cxd4 {[%emt 0:00:30]} 4. Nxd4 {[%emt 0:00:30]} Nf6 {[%emt 0:00:30]} 5. Nc3 {[%emt 0:00:30]} Nc6 {[%emt 0:00:30]} 6. Nxc6 {[%emt 0:00:30]} bxc6 {[%emt 0:00:30]} 7. e5 {[%emt 0:00:30]} Nd5 {[%emt 0:00:00]} 8. Ne4 {[%emt 0:00:00]} Bb7 {[%emt 0:00:00]} 9. c4 {[%emt 0:00:00]} Nb4 {[%emt 0:00:00]} 10. c5 {[%emt 0:00:00]} Qb8 {[%emt 0:00:00]} 11. f4 {[%emt 0:00:00]} a5 {[%emt 0:02:30]} 12. Be2 {[%emt 0:02:30]} Ba6 {[%emt 0:03:30]} 13. O-O {[%emt 0:17:30]} Be7 {[%emt 0:04:30]} 14. Be3 {[%emt 0:05:30]} Nd5 {[%emt 0:00:30]} 15. Bd4 {[%emt 0:01:30]} Bxe2 $14 {[%emt 0:10:30]} 16. Qxe2 {[%emt 0:00:00]} g6 {[%emt 0:00:30]} 17. g4 {[%emt 0:10:00]} Qb4 {[%emt 0:03:30]} 18. Rad1 {[%emt 0:01:30]} h5 {[%emt 0:07:30]} 19. g5 {[%emt 0:09:30]} O-O {[%emt 0:09:30]} 20. Qc2 {[%emt 0:19:30]} Rfb8 {[%emt 0:03:30]} 21. Rf3 {[%emt 0:06:30]} a4 {[%emt 0:01:30]} 22. Nf6+ {[%emt 0:03:30]} Bxf6 {[%emt 0:01:30]} 23. gxf6 {[%emt 0:00:30]} Kf8 {[%emt 0:04:30]} 24. f5 {[%emt 0:06:32]} exf5 {[%emt 0:02:30]} 25. Rxf5 {[%emt 0:00:21]} Ke8 {[%emt 0:01:30]} 26. Rf3 {[%emt 0:09:35]} Kd8 {[%emt 0:00:30]} 27. h3 {[%emt 0:02:59]} Rb5 {[%emt 0:02:30]} 28. e6 {[%emt 0:01:36]} dxe6 {[%emt 0:00:30]} 29. Qh2 {[%emt 0:00:17]} Ke8 {[%emt 0:19:30]} 30. Qd6 {[%emt 0:00:05]} Rd8 {[%emt 0:01:30]} 31. Qxc6+ {[%emt 0:00:38]} Kf8 {[%emt 0:00:00]} 32. Bc3 {[%emt 0:01:50]} Qe4 {[%emt 0:01:51]} 33. Qxb5 {[%emt 0:01:20]} Qxf3 {[%emt 0:00:05]} 34. Qxa4 {[%emt 0:01:00]} Qg3+ {[%emt 0:00:12]} 35. Kh1 {[%emt 0:00:01]} Qxh3+ {[%emt 0:00:22]} 36. Kg1 {[%emt 0:00:00]} Qg3+ {[%emt 0:00:42]} 37. Kh1 {[%emt 0:00:01]} Re8 {[%emt 0:01:27]} 38. Qd4 {[%emt 0:01:20]} Qf3+ {[%emt 0:01:53]} 39. Kh2 {[%emt 0:00:51]} Ne3 {[%emt 0:00:31]} 40. Qd2 {[%emt 0:00:15]} Nxd1 {[%emt 0:00:37]} 41. Qh6+ {[%emt 0:00:11]} 1-0

[Event "Turkish Youth Championship 2024"]
[Site "Samsun"]
[Date "2024.05.24"]
[Round "9"]
[White "Hamurcu, Mehmet"]
[Black "Topuz, Mirac Melih"]
[Result "0-1"]
[ECO "B22"]
[WhiteElo "1832"]
[BlackElo "2079"]
[Annotator "RC"]
[PlyCount "56"]
[EventDate "2024.05.18"]
[EventType "swiss"]
[EventCountry "TUR"]
[SourceTitle "playchess.com"]
[Source "ChessBase"]
[SourceQuality "1"]
[TimeControl "5400+30"]

1. e4 {[%emt 0:02:00]} c5 {[%emt 0:03:00]} 2. c3 {[%emt 0:00:30]} Nf6 {[%emt 0:00:30]} 3. e5 {[%emt 0:00:30]} Nd5 {[%emt 0:00:00]} 4. d4 {[%emt 0:00:30]} cxd4 {[%emt 0:00:00]} 5. Bc4 {[%emt 0:00:00]} e6 {[%emt 0:00:30]} 6. Bxd5 {[%emt 0:02:00]} exd5 {[%emt 0:00:00]} 7. Nf3 {[%emt 0:00:30]} Nc6 {[%emt 0:01:00]} 8. O-O {[%emt 0:00:30]} Be7 {[%emt 0:00:30]} 9. Qb3 {[%emt 0:04:30]} d6 {[%emt 0:12:30]} 10. exd6 {[%emt 0:16:30]} Qxd6 {[%emt 0:01:30]} 11. Nxd4 {[%emt 0:00:30]} Nxd4 {[%emt 0:05:30]} 12. cxd4 {[%emt 0:00:00]} O-O {[%emt 0:00:30]} 13. Nc3 {[%emt 0:00:00]} Be6 {[%emt 0:00:00]} 14. Ne2 {[%emt 0:15:30]} Bf6 {[%emt 0:02:00]} 15. Bf4 {[%emt 0:02:30]} Qa6 {[%emt 0:00:30]} 16. Nc3 {[%emt 0:07:30]} Bxd4 {[%emt 0:04:30]} 17. Nb5 {[%emt 0:00:30]} Bb6 {[%emt 0:02:30]} 18. a4 {[%emt 0:00:30]} d4 {[%emt 0:10:30]} 19. Qb4 {[%emt 0:05:30]} Rac8 {[%emt 0:15:30]} 20. Bd6 {[%emt 0:14:30]} Rfe8 {[%emt 0:19:31]} 21. Rfc1 {[%emt 0:06:30]} d3 {[%emt 0:01:32]} 22. Bc7 {[%emt 0:00:30]} Bd7 {[%emt 0:03:46]} 23. Bg3 {[%emt 0:15:57]} Rxc1+ {[%emt 0:03:29]} 24. Rxc1 {[%emt 0:00:01]} Bxb5 {[%emt 0:00:00]} 25. axb5 {[%emt 0:01:00]} Qa5 {[%emt 0:01:16]} 26. Qxa5 {[%emt 0:03:00]} Bxa5 {[%emt 0:00:05]} 27. Bf4 {[%emt 0:02:09]} d2 {[%emt 0:00:10]} 28. Rd1 {[%emt 0:00:00]} Re1+ {[%emt 0:00:02]} 0-1

[Event "Turkish Youth Championship 2024"]
[Site "Samsun"]
[Date "2024.05.24"]
[Round "9"]
[White "Nuhoglu, Yusahan"]
[Black "Latifoglu, Ali Emir"]
[Result "1/2-1/2"]
[ECO "D02"]
[WhiteElo "1792"]
[BlackElo "1641"]
[Annotator "NA RC"]
[PlyCount "72"]
[EventDate "2024.05.18"]
[EventType "swiss"]
[EventCountry "TUR"]
[SourceTitle "playchess.com"]
[Source "ChessBase"]
[SourceQuality "1"]
[TimeControl "5400+30"]

1. d4 {[%emt 0:06:00]} Nf6 {[%emt 0:01:00]} 2. Bf4 {[%emt 0:00:30]} e6 {[%emt 0:00:30]} 3. e3 {[%emt 0:00:00]} d5 {[%emt 0:00:00]} 4. Nd2 {[%emt 0:00:00]} c5 {[%emt 0:00:00]} 5. c3 {[%emt 0:00:30]} Bd6 {[%emt 0:00:30]} 6. Bg3 {[%emt 0:00:00]} Qc7 {[%emt 0:00:00]} 7. Ngf3 {[%emt 0:00:00]} Nbd7 {[%emt 0:00:00]} 8. Bd3 {[%emt 0:00:30]} O-O {[%emt 0:00:30]} 9. O-O {[%emt 0:00:30]} Bxg3 {[%emt 0:00:30]} 10. hxg3 {[%emt 0:00:30]} e5 {[%emt 0:00:30]} 11. dxe5 {[%emt 0:00:00]} Nxe5 {[%emt 0:00:00]} 12. Nxe5 {[%emt 0:00:00]} Qxe5 {[%emt 0:00:00]} 13. Re1 {[%emt 0:00:00]} Be6 {[%emt 0:10:30]} 14. Qa4 {[%emt 0:04:00]} Qc7 {[%emt 0:14:30]} 15. e4 {[%emt 0:00:30]} dxe4 {[%emt 0:00:30]} 16. Nxe4 {[%emt 0:00:30]} Nxe4 {[%emt 0:00:30]} 17. Qxe4 {[%emt 0:00:30]} g6 {[%emt 0:00:30]} 18. a4 {[%emt 0:01:30]} Rad8 {[%emt 0:02:30]} 19. Rad1 {[%emt 0:04:30]} Bf5 {[%emt 0:05:30]} 20. Qf3 {[%emt 0:00:30]} Bxd3 {[%emt 0:00:30]} 21. Rxd3 {[%emt 0:00:30]} Rxd3 {[%emt 0:00:30]} 22. Qxd3 {[%emt 0:00:00]} Rd8 {[%emt 0:05:30]} 23. Qe3 {[%emt 0:01:00]} Rd7 {[%emt 0:03:30]} 24. Qg5 {[%emt 0:01:30]} Qd6 {[%emt 0:03:30]} 25. Kh2 {[%emt 0:02:30]} Kg7 {[%emt 0:01:30]} 26. Re4 {[%emt 0:03:30]} h6 {[%emt 0:03:30]} 27. Qe3 {[%emt 0:01:30]} b6 {[%emt 0:04:30]} 28. Re8 {[%emt 0:00:30]} Qd5 {[%emt 0:04:30]} 29. g4 {[%emt 0:00:30]} Qg5 {[%emt 0:04:30]} 30. Qxg5 {[%emt 0:05:30]} hxg5 {[%emt 0:00:30]} 31. Ra8 {[%emt 0:00:30]} Rd2 {[%emt 0:02:30]} 32. b4 {[%emt 0:03:30]} cxb4 {[%emt 0:02:30]} 33. cxb4 {[%emt 0:00:30]} Rd7 {[%emt 0:00:30]} 34. b5 {[%emt 0:00:30]} Kf6 {[%emt 0:00:30]} 35. Kg3 {[%emt 0:00:30]} Rc7 {[%emt 0:04:30]} 36. Kf3 {[%emt 0:02:30]} Ke5 {[%emt 0:04:30]} 1/2-1/2

[Event "Turkish Youth Championship 2024"]
[Site "Samsun"]
[Date "2024.05.24"]
[Round "9"]
[White "Zeyrek, Ayaz"]
[Black "Kilic, Nurullah"]
[Result "1/2-1/2"]
[ECO "A59"]
[WhiteElo "1750"]
[BlackElo "1893"]
[Annotator "NA RC"]
[PlyCount "114"]
[EventDate "2024.05.18"]
[EventType "swiss"]
[EventCountry "TUR"]
[SourceTitle "playchess.com"]
[Source "ChessBase"]
[SourceQuality "1"]
[TimeControl "5400+30"]

1. d4 {[%emt 0:01:00]} Nf6 {[%emt 0:01:00]} 2. c4 {[%emt 0:00:30]} c5 {[%emt 0:01:30]} 3. d5 {[%emt 0:00:30]} b5 {[%emt 0:01:30]} 4. cxb5 {[%emt 0:00:30]} a6 {[%emt 0:00:00]} 5. bxa6 {[%emt 0:00:00]} g6 {[%emt 0:00:00]} 6. Nc3 {[%emt 0:00:00]} Bxa6 {[%emt 0:00:30]} 7. g3 {[%emt 0:00:30]} d6 {[%emt 0:01:30]} 8. e4 {[%emt 0:01:30]} Bxf1 {[%emt 0:05:30]} 9. Kxf1 {[%emt 0:01:30]} Bg7 {[%emt 0:00:30]} 10. Nge2 {[%emt 0:00:00]} Nbd7 {[%emt 0:01:30]} 11. Kg2 {[%emt 0:01:00]} O-O {[%emt 0:00:30]} 12. Qc2 {[%emt 0:02:30]} Ra6 {[%emt 0:09:30]} 13. b3 {[%emt 0:04:30]} Qa8 {[%emt 0:06:30]} 14. Bb2 {[%emt 0:05:30]} Rb8 {[%emt 0:07:30]} 15. a4 {[%emt 0:03:30]} c4 {[%emt 0:13:30]} 16. bxc4 {[%emt 0:07:30]} Nxe4 {[%emt 0:01:30]} 17. Qxe4 {[%emt 0:01:30]} Rxb2 {[%emt 0:00:00]} 18. Qxe7 {[%emt 0:02:30]} Ne5 {[%emt 0:00:00]} 19. Rab1 {[%emt 0:02:30]} Nxc4 {[%emt 0:01:30]} 20. Rxb2 {[%emt 0:01:30]} Nxb2 {[%emt 0:00:00]} 21. Rb1 {[%emt 0:01:30]} Bf8 {[%emt 0:00:00]} 22. Qd7 {[%emt 0:01:30]} Rb6 {[%emt 0:03:30]} 23. Qc7 {[%emt 0:06:30]} Qa6 {[%emt 0:08:30]} 24. Nf4 {[%emt 0:08:30]} Rb4 {[%emt 0:01:30]} 25. Ne4 {[%emt 0:04:30]} Rxe4 {[%emt 0:05:30]} 26. Rxb2 {[%emt 0:00:30]} Re1 {[%emt 0:00:30]} 27. Rb8 {[%emt 0:04:30]} Qf1+ {[%emt 0:10:30]} 28. Kf3 {[%emt 0:00:30]} Qh1+ {[%emt 0:00:00]} 29. Ng2 {[%emt 0:05:30]} Re5 {[%emt 0:01:00]} 30. g4 {[%emt 0:07:30]} Qxh2 {[%emt 0:00:30]} 31. Nf4 {[%emt 0:00:30]} Qh1+ {[%emt 0:00:30]} 32. Kg3 {[%emt 0:00:30]} Re1 {[%emt 0:00:30]} 33. Rxf8+ {[%emt 0:03:30]} Kxf8 {[%emt 0:00:30]} 34. Qxd6+ {[%emt 0:00:30]} Re7 {[%emt 0:00:30]} 35. Qf6 {[%emt 0:01:30]} Qg1+ {[%emt 0:00:30]} 36. Ng2 {[%emt 0:01:30]} Ke8 {[%emt 0:00:30]} 37. Qc6+ {[%emt 0:02:42]} Rd7 {[%emt 0:00:30]} 38. a5 {[%emt 0:01:47]} Qa1 {[%emt 0:00:30]} 39. Qa8+ {[%emt 0:03:51]} Ke7 {[%emt 0:00:42]} 40. Ne3 {[%emt 0:00:25]} Qe5+ {[%emt 0:00:28]} 41. Kf3 {[%emt 0:00:45]} Rd6 {[%emt 0:00:56]} 42. Qb7+ {[%emt 0:01:24]} Kf8 {[%emt 0:00:18]} 43. Ke2 {[%emt 0:04:14]} Qe7 {[%emt 0:04:16]} 44. Qxe7+ {[%emt 0:00:53]} Kxe7 {[%emt 0:00:07]} 45. g5 {[%emt 0:00:44]} Rd8 {[%emt 0:01:41]} 46. Kd3 {[%emt 0:00:53]} Rb8 {[%emt 0:00:22]} 47. Nc4 {[%emt 0:01:34]} f6 {[%emt 0:02:36]} 48. f4 {[%emt 0:00:49]} fxg5 {[%emt 0:01:05]} 49. fxg5 {[%emt 0:00:02]} Rf8 {[%emt 0:01:25]} 50. Kd4 {[%emt 0:00:18]} h5 {[%emt 0:00:09]} 51. gxh6 {[%emt 0:01:14]} g5 {[%emt 0:00:05]} 52. Ne5 {[%emt 0:00:52]} Kd6 {[%emt 0:00:38]} 53. h7 {[%emt 0:00:26]} Rf4+ {[%emt 0:00:16]} 54. Kc3 {[%emt 0:02:32]} Rh4 {[%emt 0:00:09]} 55. h8=Q {[%emt 0:01:19]} Rxh8 {[%emt 0:00:04]} 56. Nf7+ {[%emt 0:00:00]} Kxd5 {[%emt 0:00:31]} 57. Nxh8 {[%emt 0:00:00]} Kc5 {[%emt 0:00:00]} 1/2-1/2

[Event "Turkish Youth Championship 2024"]
[Site "Samsun"]
[Date "2024.05.24"]
[Round "9"]
[White "Sadik, Muhammed Selim"]
[Black "Konyar, Enver"]
[Result "1/2-1/2"]
[ECO "E32"]
[WhiteElo "1734"]
[BlackElo "1606"]
[Annotator "NA RC"]
[PlyCount "131"]
[EventDate "2024.05.18"]
[EventType "swiss"]
[EventCountry "TUR"]
[SourceTitle "playchess.com"]
[Source "ChessBase"]
[SourceQuality "1"]
[TimeControl "5400+30"]

1. d4 {[%emt 0:02:00]} Nf6 {[%emt 0:01:00]} 2. c4 {[%emt 0:00:30]} e6 {[%emt 0:00:30]} 3. Nc3 {[%emt 0:00:30]} Bb4 {[%emt 0:00:30]} 4. Qc2 {[%emt 0:00:00]} O-O {[%emt 0:00:00]} 5. e4 {[%emt 0:00:00]} d6 {[%emt 0:01:00]} 6. Bd3 {[%emt 0:00:30]} e5 {[%emt 0:00:30]} 7. d5 {[%emt 0:00:30]} Na6 {[%emt 0:01:30]} 8. Nge2 {[%emt 0:01:30]} Bxc3+ {[%emt 0:00:30]} 9. Nxc3 {[%emt 0:01:30]} Nb4 {[%emt 0:01:30]} 10. Qe2 {[%emt 0:00:00]} Nxd3+ {[%emt 0:01:30]} 11. Qxd3 {[%emt 0:00:00]} Nd7 {[%emt 0:00:30]} 12. g4 {[%emt 0:00:30]} Nc5 {[%emt 0:00:30]} 13. Qg3 {[%emt 0:00:30]} a5 {[%emt 0:00:30]} 14. O-O {[%emt 0:04:30]} g5 {[%emt 0:01:30]} 15. Rd1 {[%emt 0:01:30]} Bd7 {[%emt 0:00:30]} 16. Be3 {[%emt 0:00:30]} b6 {[%emt 0:00:30]} 17. Rd2 {[%emt 0:03:30]} f6 {[%emt 0:00:30]} 18. h4 {[%emt 0:09:30]} h6 {[%emt 0:00:30]} 19. b3 {[%emt 0:01:30]} Kg7 {[%emt 0:00:30]} 20. f3 {[%emt 0:00:30]} Qe7 {[%emt 0:01:30]} 21. Rad1 {[%emt 0:10:30]} Rh8 {[%emt 0:02:30]} 22. Rg2 {[%emt 0:01:30]} Kf7 {[%emt 0:00:00]} 23. Rh2 {[%emt 0:12:30]} Rag8 {[%emt 0:01:00]} 24. h5 {[%emt 0:03:30]} Ra8 {[%emt 0:00:30]} 25. Rb2 {[%emt 0:00:00]} Kg7 {[%emt 0:00:00]} 26. a3 {[%emt 0:02:00]} Ra7 {[%emt 0:02:00]} 27. Qf2 {[%emt 0:00:30]} Rha8 {[%emt 0:00:30]} 28. Qc2 {[%emt 0:00:30]} Ra6 {[%emt 0:01:30]} 29. Ra1 {[%emt 0:00:30]} Be8 {[%emt 0:00:30]} 30. Rba2 {[%emt 0:01:30]} Qd7 {[%emt 0:03:30]} 31. Nb5 {[%emt 0:02:30]} Qc8 {[%emt 0:02:30]} 32. Nc3 {[%emt 0:04:30]} Qd7 {[%emt 0:00:00]} 33. b4 {[%emt 0:00:30]} axb4 {[%emt 0:00:00]} 34. axb4 {[%emt 0:00:30]} Rxa2 {[%emt 0:00:30]} 35. Rxa2 {[%emt 0:00:00]} Rxa2 {[%emt 0:00:30]} 36. Qxa2 {[%emt 0:00:00]} Nd3 {[%emt 0:00:30]} 37. Qa7 {[%emt 0:03:30]} c5 {[%emt 0:05:30]} 38. Qxd7+ {[%emt 0:06:30]} Bxd7 {[%emt 0:00:30]} 39. bxc5 {[%emt 0:00:30]} Nxc5 {[%emt 0:00:30]} 40. Kf1 {[%emt 0:00:30]} Kf7 {[%emt 0:00:30]} 41. Ke2 {[%emt 0:00:30]} Ke7 {[%emt 0:00:30]} 42. Kd2 {[%emt 0:03:30]} Kd8 {[%emt 0:00:00]} 43. Nd1 {[%emt 0:01:30]} Kc7 {[%emt 0:00:00]} 44. Nb2 {[%emt 0:00:30]} Kb7 {[%emt 0:00:30]} 45. Kc2 {[%emt 0:06:09]} Kc7 {[%emt 0:00:30]} 46. Kb1 {[%emt 0:00:48]} Kb7 {[%emt 0:00:30]} 47. Ka2 {[%emt 0:00:27]} Kc7 {[%emt 0:00:30]} 48. Ka3 {[%emt 0:00:07]} Kb7 {[%emt 0:00:00]} 49. Kb4 {[%emt 0:01:48]} Na6+ {[%emt 0:00:00]} 50. Kc3 {[%emt 0:00:24]} Nc5 {[%emt 0:00:30]} 51. Nd1 {[%emt 0:00:27]} Kc7 {[%emt 0:00:30]} 52. Nf2 {[%emt 0:00:14]} Kb7 {[%emt 0:00:00]} 53. Nh3 {[%emt 0:00:26]} Be8 {[%emt 0:01:00]} 54. Ng1 {[%emt 0:03:49]} Bd7 {[%emt 0:00:30]} 55. Ne2 {[%emt 0:01:30]} Kc7 {[%emt 0:00:30]} 56. Ng3 {[%emt 0:00:23]} Kb7 {[%emt 0:00:30]} 57. Bf2 {[%emt 0:02:22]} Kc7 {[%emt 0:00:30]} 58. Nf5 {[%emt 0:02:47]} Bxf5 {[%emt 0:00:30]} 59. exf5 {[%emt 0:00:02]} Kb7 {[%emt 0:00:30]} 60. Bg3 {[%emt 0:00:30]} Kc7 {[%emt 0:00:30]} 61. Kb4 {[%emt 0:01:42]} Kb7 {[%emt 0:00:30]} 62. Kb5 {[%emt 0:00:30]} Nd3 {[%emt 0:01:30]} 63. Ka4 {[%emt 0:03:20]} Ka6 {[%emt 0:01:30]} 64. Kb3 {[%emt 0:00:08]} Nc5+ {[%emt 0:01:30]} 65. Kb4 {[%emt 0:00:48]} Nd3+ {[%emt 0:00:00]} 66. Kc3 {[%emt 0:00:00]} 1/2-1/2

[Event "Turkish Youth Championship 2024"]
[Site "Samsun"]
[Date "2024.05.24"]
[Round "9"]
[White "Tonoglu, Engin Erdem"]
[Black "Ucar, Umut Can"]
[Result "0-1"]
[ECO "B07"]
[WhiteElo "1691"]
[BlackElo "1799"]
[Annotator "NA RC"]
[PlyCount "50"]
[EventDate "2024.05.18"]
[EventType "swiss"]
[EventCountry "TUR"]
[SourceTitle "playchess.com"]
[Source "ChessBase"]
[SourceQuality "1"]
[TimeControl "5400+30"]

1. c4 {[%emt 0:01:00]} Nf6 {[%emt 0:02:00]} 2. Nc3 {[%emt 0:01:30]} e5 {[%emt 0:00:30]} 3. Nf3 {[%emt 0:00:00]} d6 {[%emt 0:00:30]} 4. e4 {[%emt 0:00:00]} c5 {[%emt 0:00:00]} 5. Be2 {[%emt 0:00:00]} Be7 {[%emt 0:00:00]} 6. O-O {[%emt 0:00:00]} O-O {[%emt 0:00:00]} 7. d3 {[%emt 0:00:00]} Nc6 {[%emt 0:00:00]} 8. a3 {[%emt 0:00:00]} a6 {[%emt 0:00:30]} 9. Rb1 {[%emt 0:00:30]} Rb8 {[%emt 0:02:30]} 10. b4 {[%emt 0:01:30]} cxb4 {[%emt 0:00:30]} 11. axb4 {[%emt 0:01:30]} b5 {[%emt 0:00:30]} 12. Ba3 {[%emt 0:01:30]} Bg4 {[%emt 0:01:30]} 13. Ne1 {[%emt 0:04:30]} Bxe2 {[%emt 0:02:30]} 14. Qxe2 {[%emt 0:00:00]} Nd4 {[%emt 0:00:30]} 15. Qd2 {[%emt 0:00:00]} Qc8 {[%emt 0:01:30]} 16. Nd5 {[%emt 0:04:30]} Nxd5 {[%emt 0:01:30]} 17. cxd5 {[%emt 0:00:30]} Qg4 {[%emt 0:00:30]} 18. f3 {[%emt 0:05:30]} Qh5 {[%emt 0:03:30]} 19. Nc2 {[%emt 0:03:30]} Bg5 {[%emt 0:00:30]} 20. Qd1 {[%emt 0:00:30]} Nxc2 {[%emt 0:00:30]} 21. Qxc2 {[%emt 0:02:30]} Be3+ {[%emt 0:00:30]} 22. Kh1 {[%emt 0:00:00]} Rbc8 {[%emt 0:00:30]} 23. Qe2 {[%emt 0:01:00]} Bf4 {[%emt 0:00:00]} 24. g4 {[%emt 0:02:30]} Qh3 {[%emt 0:01:00]} 25. Bc1 {[%emt 0:00:30]} Rc2 {[%emt 0:00:30]} 0-1